fUSD/lending_fUSD_20260701
["ID","MTS","AMOUNT","RATE_DAILY","PERIOD"]
[426798699,1782837053000,-200.0,0.00033532,2]
[426798705,1782837053000,-200.0,0.00033532,2]
[426798703,1782837053000,-200.0,0.00033532,2]
[426798701,1782837053000,-200.0,0.00033532,2]
[426798700,1782837053000,-200.0,0.00033532,2]
[426798704,1782837053000,-200.0,0.00033532,2]
[426798706,1782837053000,-200.0,0.00033532,2]
[426798652,1782837053000,-300.0,0.00033446,2]
[426798707,1782837053000,-200.0,0.00033532,2]
[426798685,1782837053000,-3251.0,0.00033452,10]
[426798678,1782837053000,-150.9105807,0.00033449,60]
[426798696,1782837053000,-1356.53843615,0.00033524,2]
[426798682,1782837053000,-225.9391696,0.00033449,60]
[426798657,1782837053000,-300.0,0.00033446,2]
[426798677,1782837053000,-459.77470745,0.00033449,7]
[426798654,1782837053000,-300.0,0.00033446,2]
[426798656,1782837053000,-597.30103364,0.00033446,2]
[426798655,1782837053000,-576.47447351,0.00033446,2]
[426798653,1782837053000,-300.0,0.00033446,2]
[426798660,1782837053000,-569.05020943,0.00033446,2]
[426798659,1782837053000,-300.0,0.00033446,2]
[426798661,1782837053000,-300.0,0.00033446,2]
[426798664,1782837053000,-300.0,0.00033446,2]
[426798663,1782837053000,-300.0,0.00033446,2]
[426798669,1782837053000,-584.74673027,0.00033446,2]
[426798667,1782837053000,-513.9940935,0.00033446,2]
[426798662,1782837053000,-523.41390625,0.00033446,2]
[426798681,1782837053000,-274.5201726,0.00033449,60]
[426798684,1782837053000,-249.0017556,0.00033449,60]
[426798670,1782837053000,-454.29401878,0.00033446,2]
[426798680,1782837053000,-568.0740546,0.00033449,60]
[426798675,1782837053000,-250.0,0.00033448,7]
[426798671,1782837053000,-300.0,0.00033446,2]
[426798672,1782837053000,-300.0,0.00033446,2]
[426798674,1782837053000,-300.0,0.00033446,2]
[426798668,1782837053000,-300.0,0.00033446,2]
[426798665,1782837053000,-300.0,0.00033446,2]
[426798673,1782837053000,-300.0,0.00033446,2]
[426798666,1782837053000,-300.0,0.00033446,2]
[426798749,1782837054000,-500.0,0.00033532,2]
[426798746,1782837054000,-500.0,0.00033532,2]
[426798743,1782837054000,-500.0,0.00033532,2]
[426798745,1782837054000,-500.0,0.00033532,2]
[426798747,1782837054000,-500.0,0.00033532,2]
[426798741,1782837054000,-500.0,0.00033532,2]
[426798742,1782837054000,-500.0,0.00033532,2]
[426798739,1782837054000,-500.0,0.00033532,2]
[426798736,1782837054000,-500.0,0.00033532,2]
[426798750,1782837054000,-500.0,0.00033532,2]
[426798744,1782837054000,-500.0,0.00033532,2]
[426798752,1782837054000,-2636.5098026,0.00033558,2]
[426798758,1782837054000,-208.0,0.00033585,30]
[426798751,1782837054000,-606.0,0.00033532,2]
[426798753,1782837054000,-2270.64518527,0.00033558,2]
[426798754,1782837054000,-2418.79820888,0.00033558,2]
[426798756,1782837054000,-182.0,0.00033565,30]
[426798755,1782837054000,-2153.03294013,0.00033558,2]
[426798760,1782837054000,-436.59,0.000336,10]
[426798762,1782837054000,-150.26021823,0.00033629,120]
[426798765,1782837054000,-12937.045343,0.00033725,2]
[426798759,1782837054000,-696.0,0.00033585,30]
[426798766,1782837054000,-504.0,0.00033745,9]
[426798757,1782837054000,-202.0,0.00033585,30]
[426798740,1782837054000,-500.0,0.00033532,2]
[426798748,1782837054000,-500.0,0.00033532,2]
[426798737,1782837054000,-500.0,0.00033532,2]
[426798711,1782837054000,-200.0,0.00033532,2]
[426798738,1782837054000,-500.0,0.00033532,2]
[426798761,1782837054000,-361.86,0.00033617,3]
[426798708,1782837054000,-200.0,0.00033532,2]
[426798709,1782837054000,-200.0,0.00033532,2]
[426798710,1782837054000,-200.0,0.00033532,2]
[426798712,1782837054000,-200.0,0.00033532,2]
[426798714,1782837054000,-200.0,0.00033532,2]
[426798713,1782837054000,-200.0,0.00033532,2]
[426798715,1782837054000,-200.0,0.00033532,2]
[426798719,1782837054000,-200.0,0.00033532,2]
[426798716,1782837054000,-200.0,0.00033532,2]
[426798718,1782837054000,-200.0,0.00033532,2]
[426798717,1782837054000,-200.0,0.00033532,2]
[426798725,1782837054000,-200.0,0.00033532,2]
[426798720,1782837054000,-200.0,0.00033532,2]
[426798721,1782837054000,-200.0,0.00033532,2]
[426798729,1782837054000,-200.0,0.00033532,2]
[426798731,1782837054000,-200.0,0.00033532,2]
[426798726,1782837054000,-200.0,0.00033532,2]
[426798722,1782837054000,-200.0,0.00033532,2]
[426798723,1782837054000,-200.0,0.00033532,2]
[426798730,1782837054000,-200.0,0.00033532,2]
[426798728,1782837054000,-200.0,0.00033532,2]
[426798724,1782837054000,-200.0,0.00033532,2]
[426798727,1782837054000,-200.0,0.00033532,2]
[426798732,1782837054000,-200.0,0.00033532,2]
[426798735,1782837054000,-500.0,0.00033532,2]
[426798734,1782837054000,-196.0,0.00033532,2]
[426798733,1782837054000,-200.0,0.00033532,2]
[426798764,1782837054000,-150.0,0.0003369,2]
[426798773,1782837054000,-1000.0,0.00033781,2]
[426798776,1782837054000,-1358.72,0.00033781,2]
[426798800,1782837054000,-199.0,0.0003411,30]
[426798798,1782837054000,-785.0,0.00034028,2]
[426798796,1782837054000,-803.14708914,0.00034028,2]
[426798801,1782837054000,-897.02046606,0.00034191,2]
[426798803,1782837054000,-160.0,0.0003422,11]
[426798805,1782837054000,-812.0,0.00034265,120]
[426798810,1782837054000,-749.0,0.00034275,120]
[426798807,1782837054000,-812.0,0.00034265,120]
[426798813,1782837054000,-812.0,0.00034275,120]
[426798804,1782837054000,-198.92,0.00034247,25]
[426798806,1782837054000,-749.0,0.00034265,120]
[426798808,1782837054000,-749.0,0.00034265,120]
[426798799,1782837054000,-785.0,0.00034028,2]
[426798814,1782837054000,-749.0,0.00034275,120]
[426798811,1782837054000,-812.0,0.00034275,120]
[426798815,1782837054000,-819.95,0.00034275,120]
[426798816,1782837054000,-758.21,0.00034275,120]
[426798817,1782837054000,-812.0,0.00034285,120]
[426798818,1782837054000,-749.0,0.00034285,120]
[426798819,1782837054000,-812.0,0.00034285,120]
[426798820,1782837054000,-749.0,0.00034285,120]
[426798823,1782837054000,-812.0,0.00034285,120]
[426798822,1782837054000,-749.0,0.00034285,120]
[426798821,1782837054000,-812.0,0.00034285,120]
[426798824,1782837054000,-749.0,0.00034285,120]
[426798763,1782837054000,-293899.0,0.0003367,30]
[426798812,1782837054000,-749.0,0.00034275,120]
[426798795,1782837054000,-2337.0,0.00034016,11]
[426798809,1782837054000,-812.0,0.00034275,120]
[426798797,1782837054000,-785.0,0.00034028,2]
[426798793,1782837054000,-22000.0,0.00034,7]
[426798778,1782837054000,-1036.99,0.00033781,2]
[426798770,1782837054000,-1000.0,0.00033781,2]
[426798767,1782837054000,-568.63840742,0.00033774,2]
[426798777,1782837054000,-1000.0,0.00033781,2]
[426798771,1782837054000,-1000.0,0.00033781,2]
[426798769,1782837054000,-1000.0,0.00033781,2]
[426798772,1782837054000,-1000.0,0.00033781,2]
[426798768,1782837054000,-1000.0,0.00033781,2]
[426798775,1782837054000,-1000.0,0.00033781,2]
[426798779,1782837054000,-436.59,0.000338,14]
[426798783,1782837054000,-426.5,0.00033922,14]
[426798782,1782837054000,-13272.17861427,0.0003392,2]
[426798774,1782837054000,-1000.0,0.00033781,2]
[426798781,1782837054000,-2337.0,0.00033899,11]
[426798780,1782837054000,-151.0,0.00033879,2]
[426798791,1782837054000,-644.57,0.00034,30]
[426798792,1782837054000,-3604.0,0.00034,30]
[426798802,1782837054000,-162.22,0.00034212,120]
[426798789,1782837054000,-1077.75849299,0.00034,2]
[426798787,1782837054000,-800.0,0.00034,7]
[426798794,1782837054000,-160.0,0.00034,30]
[426798788,1782837054000,-800.0,0.00034,7]
[426798790,1782837054000,-800.0,0.00034,7]
[426798785,1782837054000,-645.65898549,0.0003393,30]
[426798784,1782837054000,-155.04098883,0.00033929,2]
[426798786,1782837054000,-160.0,0.00033945,11]
[426798865,1782837055000,-90247.22474069,0.000345,3]
[426798864,1782837055000,-300.0,0.000345,30]
[426798863,1782837055000,-3000.0,0.000345,30]
[426798861,1782837055000,-800.0,0.000345,7]
[426798862,1782837055000,-166.84,0.000345,2]
[426798857,1782837055000,-504.0,0.00034479,10]
[426798860,1782837055000,-800.0,0.000345,7]
[426798853,1782837055000,-194.0,0.00034417,7]
[426798859,1782837055000,-800.0,0.000345,7]
[426798856,1782837055000,-270.52,0.00034473,13]
[426798855,1782837055000,-685.33032751,0.00034466,30]
[426798866,1782837055000,-53728.03572106,0.00034524,7]
[426798875,1782837055000,-151.0,0.00034567,7]
[426798869,1782837055000,-1072.449619,0.00034524,7]
[426798868,1782837055000,-1072.449619,0.00034524,7]
[426798871,1782837055000,-1072.449619,0.00034524,7]
[426798870,1782837055000,-1072.449619,0.00034524,7]
[426798878,1782837055000,-4669.346111,0.00034567,7]
[426798873,1782837055000,-182.0,0.00034565,30]
[426798872,1782837055000,-151.0,0.00034524,7]
[426798874,1782837055000,-391233.9593287,0.00034567,120]
[426798879,1782837055000,-4669.346111,0.00034567,7]
[426798880,1782837055000,-525.234672,0.00034567,7]
[426798876,1782837055000,-4669.346111,0.00034567,7]
[426798858,1782837055000,-350.0,0.00034482,4]
[426798867,1782837055000,-892.6035788,0.00034524,7]
[426798854,1782837055000,-5579.90352752,0.00034435,2]
[426798825,1782837055000,-46202.48279848,0.00034295,30]
[426798852,1782837055000,-171.8,0.00034417,2]
[426798881,1782837055000,-525.234672,0.00034567,7]
[426798826,1782837055000,-2163.35,0.00034316,14]
[426798828,1782837055000,-160.0,0.00034328,11]
[426798831,1782837055000,-1353.80364335,0.00034359,3]
[426798830,1782837055000,-645.65898549,0.00034352,30]
[426798833,1782837055000,-25000.0,0.00034359,3]
[426798832,1782837055000,-25000.0,0.00034359,3]
[426798829,1782837055000,-917.29283891,0.0003435,120]
[426798835,1782837055000,-25000.0,0.00034359,3]
[426798834,1782837055000,-25000.0,0.00034359,3]
[426798836,1782837055000,-25000.0,0.00034359,3]
[426798827,1782837055000,-208.0,0.00034327,3]
[426798850,1782837055000,-1500.0,0.000344,7]
[426798838,1782837055000,-25000.0,0.00034359,3]
[426798847,1782837055000,-785.0,0.00034398,2]
[426798837,1782837055000,-25000.0,0.00034359,3]
[426798839,1782837055000,-5889.48324625,0.00034359,3]
[426798848,1782837055000,-785.0,0.00034398,2]
[426798842,1782837055000,-785.0,0.00034398,2]
[426798844,1782837055000,-785.0,0.00034398,2]
[426798846,1782837055000,-785.0,0.00034398,2]
[426798843,1782837055000,-785.0,0.00034398,2]
[426798841,1782837055000,-785.0,0.00034398,2]
[426798845,1782837055000,-785.0,0.00034398,2]
[426798849,1782837055000,-202.66,0.000344,13]
[426798851,1782837055000,-152.0,0.00034409,8]
[426798840,1782837055000,-13275.28964116,0.00034359,3]
[426798877,1782837055000,-4669.346111,0.00034567,7]
[426798894,1782837055000,-222.884734,0.00034567,7]
[426798883,1782837055000,-525.234672,0.00034567,7]
[426798914,1782837055000,-651.98,0.0003468,2]
[426798916,1782837055000,-185.31,0.0003468,2]
[426798913,1782837055000,-151.0,0.0003468,2]
[426798918,1782837055000,-248.76,0.0003468,2]
[426798920,1782837055000,-155.47356347,0.0003468,2]
[426798919,1782837055000,-185.3,0.0003468,2]
[426798921,1782837055000,-155.47356347,0.0003468,2]
[426798928,1782837055000,-155.47356347,0.0003468,2]
[426798927,1782837055000,-155.47356347,0.0003468,2]
[426798925,1782837055000,-155.47356347,0.0003468,2]
[426798926,1782837055000,-155.47356347,0.0003468,2]
[426798923,1782837055000,-155.47356347,0.0003468,2]
[426798882,1782837055000,-525.234672,0.00034567,7]
[426798924,1782837055000,-155.47356347,0.0003468,2]
[426798922,1782837055000,-155.47356347,0.0003468,2]
[426798930,1782837055000,-155.47356347,0.0003468,2]
[426798935,1782837055000,-155.47356347,0.0003468,2]
[426798931,1782837055000,-155.47356347,0.0003468,2]
[426798934,1782837055000,-155.47356347,0.0003468,2]
[426798936,1782837055000,-644.64,0.0003468,2]
[426798937,1782837055000,-573.98,0.0003468,2]
[426798932,1782837055000,-155.47356347,0.0003468,2]
[426798933,1782837055000,-155.47356347,0.0003468,2]
[426798938,1782837055000,-644.72,0.0003468,2]
[426798939,1782837055000,-151.0,0.0003468,2]
[426798909,1782837055000,-2337.0,0.00034605,11]
[426798912,1782837055000,-482.69,0.0003468,2]
[426798929,1782837055000,-155.47356347,0.0003468,2]
[426798915,1782837055000,-185.3,0.0003468,2]
[426798911,1782837055000,-155.04098883,0.00034676,2]
[426798884,1782837055000,-189.998218,0.00034567,7]
[426798886,1782837055000,-189.998218,0.00034567,7]
[426798887,1782837055000,-189.998218,0.00034567,7]
[426798885,1782837055000,-189.998218,0.00034567,7]
[426798889,1782837055000,-1581.515186,0.00034567,7]
[426798891,1782837055000,-1581.515186,0.00034567,7]
[426798892,1782837055000,-222.884734,0.00034567,7]
[426798888,1782837055000,-1581.515186,0.00034567,7]
[426798893,1782837055000,-222.884734,0.00034567,7]
[426798896,1782837055000,-417.0192,0.00034567,7]
[426798897,1782837055000,-417.0192,0.00034567,7]
[426798905,1782837055000,-208.0,0.00034585,30]
[426798890,1782837055000,-1581.515186,0.00034567,7]
[426798895,1782837055000,-222.884734,0.00034567,7]
[426798902,1782837055000,-314.594592,0.00034567,7]
[426798910,1782837055000,-360.23,0.00034639,3]
[426798906,1782837055000,-696.0,0.00034585,30]
[426798907,1782837055000,-408.76,0.000346,7]
[426798917,1782837055000,-185.3,0.0003468,2]
[426798900,1782837055000,-314.594592,0.00034567,7]
[426798908,1782837055000,-685.33032751,0.00034603,30]
[426798898,1782837055000,-417.0192,0.00034567,7]
[426798901,1782837055000,-314.594592,0.00034567,7]
[426798899,1782837055000,-417.0192,0.00034567,7]
[426798903,1782837055000,-314.594592,0.00034567,7]
[426798904,1782837055000,-202.0,0.00034585,30]
[426798955,1782837056000,-1642.25144595,0.00034743,2]
[426798965,1782837056000,-404.7,0.000349,120]
[426798956,1782837056000,-9073.0,0.00034749,5]
[426798953,1782837056000,-168.68246232,0.000347,20]
[426798959,1782837056000,-4876.0,0.0003479,10]
[426798962,1782837056000,-644.57,0.000348,30]
[426798960,1782837056000,-1500.0,0.00034795,2]
[426798958,1782837056000,-293899.0,0.0003478,30]
[426798963,1782837056000,-685.33032751,0.00034877,30]
[426798966,1782837056000,-2337.0,0.00034924,11]
[426798967,1782837056000,-2337.0,0.00034925,11]
[426798968,1782837056000,-15240.57347093,0.00034968,2]
[426798961,1782837056000,-300.04099165,0.00034795,2]
[426798957,1782837056000,-645.65898549,0.00034773,30]
[426798941,1782837056000,-482.02,0.0003468,2]
[426798954,1782837056000,-685.33032751,0.0003474,30]
[426798950,1782837056000,-185.3,0.0003468,2]
[426798949,1782837056000,-644.64,0.0003468,2]
[426798951,1782837056000,-576.88,0.0003468,2]
[426798944,1782837056000,-482.64,0.0003468,2]
[426798946,1782837056000,-644.64,0.0003468,2]
[426798976,1782837056000,-11731.91817913,0.00035,17]
[426798947,1782837056000,-185.3,0.0003468,2]
[426798942,1782837056000,-151.0,0.0003468,2]
[426798948,1782837056000,-151.0,0.0003468,2]
[426798945,1782837056000,-151.0,0.0003468,2]
[426798952,1782837056000,-150.0,0.0003469,2]
[426798940,1782837056000,-644.67,0.0003468,2]
[426798964,1782837056000,-436.59,0.000349,60]
[426798969,1782837056000,-158.59769754,0.00034977,2]
[426798943,1782837056000,-644.64,0.0003468,2]
[426798975,1782837056000,-204.032,0.00034999,2]
[426798973,1782837056000,-150.0,0.00034999,2]
[426799001,1782837056000,-236.307665,0.00034567,7]
[426798998,1782837056000,-236.307665,0.0003014,7]
[426798999,1782837056000,-300.0,0.00033446,2]
[426799000,1782837056000,-300.0,0.00033446,2]
[426799002,1782837056000,-270.5775619,0.00035,30]
[426798997,1782837056000,-344.2867586,0.00014896,2]
[426798993,1782837056000,-11228.71475092,0.00035,120]
[426798992,1782837056000,-1077.0,0.00035,30]
[426798995,1782837056000,-1919.46815783,0.00035,120]
[426798994,1782837056000,-2751.04752613,0.00035,2]
[426798989,1782837056000,-2575.74998659,0.00035,2]
[426798985,1782837056000,-800.0,0.00035,7]
[426798984,1782837056000,-46202.48279849,0.00035,30]
[426798987,1782837056000,-1000.0,0.00035,2]
[426798996,1782837056000,-1204512.4196538,0.00035,30]
[426798988,1782837056000,-6714.50045309,0.00035,30]
[426798971,1782837056000,-151.0,0.00034996,2]
[426798983,1782837056000,-3961.7554,0.00035,2]
[426798974,1782837056000,-150.0,0.00034999,2]
[426798970,1782837056000,-12211.5786604,0.00034989,2]
[426798972,1782837056000,-176.27175071,0.00034999,30]
[426798978,1782837056000,-1500.0,0.00035,2]
[426798980,1782837056000,-1500.0,0.00035,2]
[426798977,1782837056000,-1500.0,0.00035,2]
[426798990,1782837056000,-213.48815019,0.00035,120]
[426798981,1782837056000,-1500.0,0.00035,2]
[426798982,1782837056000,-1500.0,0.00035,2]
[426798979,1782837056000,-1500.0,0.00035,2]
[426798991,1782837056000,-800.0,0.00035,7]
[426798986,1782837056000,-357.02768327,0.00035,30]
[426799010,1782837057000,-236.307665,0.0003014,7]
[426799014,1782837057000,-236.307665,0.00034567,7]
[426799011,1782837057000,-236.307665,0.0003014,7]
[426799018,1782837057000,-1361.39009554,0.00035,30]
[426799015,1782837057000,-2556.90382083,0.00035,30]
[426799017,1782837057000,-790.70620023,0.00035,30]
[426799012,1782837057000,-446.13298497,0.00033446,2]
[426799004,1782837057000,-5845.6,0.00027397,10]
[426799013,1782837057000,-300.0,0.00033446,2]
[426799008,1782837057000,-521.69875572,0.00027397,10]
[426799006,1782837057000,-383.0645235,0.00027397,10]
[426799007,1782837057000,-707.3898016,0.00027397,10]
[426799005,1782837057000,-221.6554765,0.00023091,2]
[426799003,1782837057000,-3961.39745924,0.00027397,10]
[426799009,1782837057000,-17815.55945994,0.00027397,10]
[426799019,1782837057000,-1063.8457897,0.00035,30]
[426799016,1782837057000,-7625.8003797,0.00035,30]
[426799035,1782837057000,-505.0,0.00035,30]
[426799020,1782837057000,166.66,0.00023824,30]
[426799034,1782837057000,-375034.23035873,0.00035,30]
[426799032,1782837057000,-236.307665,0.00034567,7]
[426799033,1782837057000,-1884.41506989,0.00035,30]
[426799031,1782837057000,-236.307665,0.00034567,7]
[426799021,1782837057000,166.66,0.00024326,30]
[426799036,1782837057000,-13758.49104232,0.00035,30]
[426799030,1782837057000,-300.0,0.00033446,2]
[426799037,1782837057000,-265.15710834,0.00035,30]
[426799029,1782837057000,-236.307665,0.0003014,7]
[426799027,1782837057000,-187.94,0.00028638,2]
[426799025,1782837057000,166.66,0.00026332,30]
[426799026,1782837057000,-187.94,0.00024658,2]
[426799024,1782837057000,166.66,0.00025831,30]
[426799022,1782837057000,166.66,0.00024827,30]
[426799023,1782837057000,166.66,0.00025329,30]
[426799028,1782837057000,-187.95,0.00029232,7]
[426799038,1782837273000,272.0,0.00030137,30]
[426799039,1782837797000,161.0,0.00028585,30]
[426799040,1782837798000,168.0,0.00029585,30]
[426799041,1782837819000,161.0,0.00028585,30]
[426799042,1782837821000,161.0,0.00029585,30]
[426799043,1782837837000,166.66,0.00022238,30]
[426799044,1782837838000,166.66,0.00022697,30]
[426799045,1782837838000,166.66,0.00023155,30]
[426799046,1782837838000,166.66,0.00023614,30]
[426799047,1782837838000,166.66,0.00024072,30]
[426799048,1782837921000,151.0,0.00028552,30]
[426799049,1782837922000,151.0,0.00029552,30]
[426799050,1782838026000,278.0,0.00028552,30]
[426799051,1782838027000,278.0,0.00029552,30]
[426799081,1782838232000,-500.0,0.00013945,2]
[426799078,1782838232000,-500.0,0.00013945,2]
[426799076,1782838232000,-500.0,0.00013945,2]
[426799077,1782838232000,-276.92413246,0.00013945,2]
[426799074,1782838232000,-500.0,0.00013945,2]
[426799075,1782838232000,-500.0,0.00013945,2]
[426799071,1782838232000,-300.0,0.00013893,2]
[426799072,1782838232000,-500.0,0.00013945,2]
[426799069,1782838232000,-300.0,0.00013893,2]
[426799068,1782838232000,-216.62538722,0.00013808,2]
[426799080,1782838232000,-500.0,0.00013945,2]
[426799067,1782838232000,-604.8622419,0.00013799,2]
[426799064,1782838232000,-600.0,0.00013799,2]
[426799066,1782838232000,-600.0,0.00013799,2]
[426799065,1782838232000,-600.0,0.00013799,2]
[426799063,1782838232000,-160.0,0.00013797,2]
[426799062,1782838232000,-300.0,0.00013719,2]
[426799073,1782838232000,-279.30832635,0.00013945,2]
[426799079,1782838232000,-500.0,0.00013945,2]
[426799070,1782838232000,-300.0,0.00013893,2]
[426799084,1782838232000,-500.0,0.00013945,2]
[426799082,1782838232000,-500.0,0.00013945,2]
[426799104,1782838232000,-1254.41808677,0.00019339,2]
[426799101,1782838232000,-2552.11332044,0.00019339,2]
[426799098,1782838232000,-153.43854319,0.00015091,2]
[426799099,1782838232000,-390.40627734,0.00016773,2]
[426799097,1782838232000,-600.0,0.00015024,2]
[426799100,1782838232000,-4889.22211966,0.000192,2]
[426799094,1782838232000,-512.91752298,0.00015021,2]
[426799095,1782838232000,-564.46393751,0.00015021,2]
[426799096,1782838232000,-300.0,0.00015024,2]
[426799086,1782838232000,-500.0,0.00013945,2]
[426799091,1782838232000,-500.0,0.00013945,2]
[426799092,1782838232000,-500.0,0.00013946,2]
[426799090,1782838232000,-500.0,0.00013945,2]
[426799088,1782838232000,-500.0,0.00013945,2]
[426799083,1782838232000,-500.0,0.00013945,2]
[426799089,1782838232000,-500.0,0.00013945,2]
[426799087,1782838232000,-500.0,0.00013945,2]
[426799085,1782838232000,-500.0,0.00013945,2]
[426799093,1782838232000,-269.74935758,0.00013946,2]
[426799105,1782838233000,-303.05,0.00019339,2]
[426799107,1782838233000,-257.8752,0.00019339,2]
[426799106,1782838233000,-776.6941157,0.00019339,2]
[426799133,1782838238000,-4889.22211966,0.000202,2]
[426799132,1782838238000,-216.0,0.0002009,2]
[426799131,1782838238000,-935.0,0.0002009,2]
[426799134,1782838238000,-4889.22211966,0.000204,2]
[426799138,1782838238000,-4889.22211966,0.000208,2]
[426799136,1782838238000,-4889.22211966,0.000206,2]
[426799139,1782838238000,-4889.22211966,0.00021,2]
[426799135,1782838238000,-443.1397139,0.00020543,2]
[426799129,1782838238000,-150.0,0.0002009,2]
[426799137,1782838238000,-500.0,0.0002074,2]
[426799130,1782838238000,-150.0,0.0002009,2]
[426799118,1782838238000,-645.31994166,0.000194,2]
[426799125,1782838238000,-3565.0,0.0002009,2]
[426799127,1782838238000,-283.0,0.0002009,2]
[426799128,1782838238000,-250.0,0.0002009,2]
[426799126,1782838238000,-1362.0,0.0002009,2]
[426799123,1782838238000,-4889.22211966,0.0002,2]
[426799122,1782838238000,-4889.22211966,0.000198,2]
[426799120,1782838238000,-1680.82723337,0.000194,2]
[426799121,1782838238000,-4889.22211966,0.000196,2]
[426799119,1782838238000,-949.25422182,0.000194,2]
[426799116,1782838238000,-4855.83927709,0.00019339,2]
[426799140,1782838238000,-278.0,0.00021,2]
[426799124,1782838238000,-278.0,0.0002,2]
[426799141,1782838238000,-166.66,0.0002178,2]
[426799117,1782838238000,-1613.82072281,0.000194,2]
[426799142,1782838238000,-5000.0,0.00021918,2]
[426799143,1782838238000,-278.0,0.00022,2]
[426799174,1782838238000,-841.72,0.0002411,2]
[426799172,1782838238000,-568.63840741,0.00024096,2]
[426799170,1782838238000,-278.0,0.00024,2]
[426799166,1782838238000,-206.01354924,0.00023562,2]
[426799168,1782838238000,-150.97669979,0.00023562,2]
[426799164,1782838238000,-165.24,0.00023562,2]
[426799161,1782838238000,-172.72462527,0.00023562,2]
[426799159,1782838238000,-171.19943857,0.00023562,2]
[426799160,1782838238000,-154.61014275,0.00023562,2]
[426799158,1782838238000,-164.8112383,0.00023562,2]
[426799155,1782838238000,-493.78,0.0002311,2]
[426799162,1782838238000,-184.1360257,0.00023562,2]
[426799156,1782838238000,-162.33184866,0.00023562,2]
[426799157,1782838238000,-182.36970622,0.00023562,2]
[426799149,1782838238000,-3565.0,0.0002309,2]
[426799147,1782838238000,-150.0,0.00022728,2]
[426799148,1782838238000,-278.0,0.00023,2]
[426799146,1782838238000,-2091.64,0.00022466,2]
[426799145,1782838238000,-961.97,0.00022466,2]
[426799144,1782838238000,-1959.33,0.00022466,2]
[426799151,1782838238000,-283.0,0.0002309,2]
[426799152,1782838238000,-150.0,0.0002309,2]
[426799154,1782838238000,-216.0,0.0002309,2]
[426799153,1782838238000,-935.0,0.0002309,2]
[426799150,1782838238000,-1362.0,0.0002309,2]
[426799234,1782838239000,-317.74631995,0.00025653,2]
[426799233,1782838239000,-230.80236604,0.00025653,2]
[426799232,1782838239000,-552.4080771,0.00025653,2]
[426799228,1782838239000,-513.59831571,0.00025653,2]
[426799225,1782838239000,-235.70312122,0.00025653,2]
[426799231,1782838239000,-232.54079086,0.00025653,2]
[426799227,1782838239000,-392.15814555,0.00025653,2]
[426799229,1782838239000,-463.83042824,0.00025653,2]
[426799226,1782838239000,-494.43371489,0.00025653,2]
[426799236,1782838239000,-237.44666997,0.00025653,2]
[426799230,1782838239000,-518.1738758,0.00025653,2]
[426799237,1782838239000,-313.67657367,0.00025653,2]
[426799248,1782838239000,-935.0,0.0002609,2]
[426799239,1782838239000,-204.390489,0.00025653,2]
[426799238,1782838239000,-618.04064772,0.00025653,2]
[426799241,1782838239000,-452.93009937,0.00025653,2]
[426799240,1782838239000,-183.01807387,0.00025653,2]
[426799242,1782838239000,-329.27969191,0.00025653,2]
[426799246,1782838239000,-1362.0,0.0002609,2]
[426799245,1782838239000,-3565.0,0.0002609,2]